fUST/lending_fUST_20241214
["ID","MTS","AMOUNT","RATE_DAILY","PERIOD"]
[345335646,1734159040744,-508.50050817,0.00027397,7]
[345335648,1734159040753,-500.0,0.00027397,7]
[345335650,1734159040763,-500.0,0.00027397,7]
[345335652,1734159040772,-1173.88,0.00027397,7]
[345335654,1734159040782,-507.44212617,0.00027397,7]
[345335656,1734159040791,-505.51565302,0.00027397,7]
[345335658,1734159040800,-5164.9,0.00027397,7]
[345335660,1734159040810,-500.0,0.00027397,7]
[345335662,1734159040819,-726.21,0.00027397,7]
[345335664,1734159040829,-152.26938504,0.00027397,2]
[345335667,1734159040839,-509.27642416,0.00027397,7]
[345335668,1734159040848,-507.5,0.00027397,7]
[345335670,1734159040857,-500.0,0.00027397,7]
[345335681,1734159040944,-840.11,0.00027397,7]
[345335683,1734159040953,-995.1,0.00027397,7]
[345335684,1734159040962,-500.0,0.00027397,7]
[345335686,1734159040971,-500.0,0.00027397,7]
[345335689,1734159040985,-500.0,0.00027397,2]
[345335691,1734159040995,-1311.49,0.00027397,7]
[345335692,1734159041004,-1081.72,0.00027397,7]
[345335694,1734159041013,-649.22099869,0.00027397,7]
[345335697,1734159041023,-1397.12,0.00027397,7]
[345335698,1734159041032,-500.0,0.00027397,7]
[345335701,1734159041041,-1038.67,0.00027397,7]
[345335703,1734159041051,-504.06044539,0.00027397,7]
[345335705,1734159041061,-500.0,0.00027397,7]
[345335707,1734159041070,-2134.49,0.00027397,7]
[345335709,1734159041079,-500.0,0.00027397,7]
[345335711,1734159041088,-500.0,0.00027397,7]
[345335713,1734159041097,-909.17,0.00027397,7]
[345335715,1734159041107,-14918.91,0.00027397,7]
[345335717,1734159041116,-380.05729286,0.00027397,7]
[345335719,1734159041125,-500.0,0.00027397,7]
[345335721,1734159041134,-162.80200349,0.00027397,7]
[345335723,1734159041144,-1332.87,0.00027397,7]
[345335725,1734159041153,-504.98881386,0.00027397,7]
[345335727,1734159041162,-2507.57,0.00027397,7]
[345335729,1734159041171,-500.0,0.00027397,7]
[345335731,1734159041181,-500.0,0.00027397,7]
[345335733,1734159041190,-809.35,0.00027397,7]
[345335735,1734159041201,-500.0,0.00027397,7]
[345335737,1734159041211,-500.0,0.00027397,7]
[345335739,1734159041220,-500.0,0.00027397,7]
[345335741,1734159041229,-992.66,0.00027397,7]
[345335743,1734159041239,-523.64,0.00027397,7]
[345335744,1734159041248,-500.0,0.00027397,7]
[345335747,1734159041258,-500.0,0.00027397,7]
[345335748,1734159041267,-504.7052757,0.00027397,7]
[345335749,1734159041276,-6012.59,0.00027397,5]
[345335750,1734159041285,-500.0,0.00027397,7]
[345335752,1734159041295,-500.0,0.00027397,7]
[345335753,1734159041304,-500.0,0.00027397,7]
[345335754,1734159041314,-1049.65,0.00027397,7]
[345335755,1734159041323,-10760.43,0.00027397,7]
[345335756,1734159041332,-151.0,0.00027397,7]
[345335757,1734159041342,-524.71321939,0.00027397,7]
[345335758,1734159041351,-28690.0812944,0.00027397,2]
[345335759,1734159041362,-197.47113466,0.00027397,2]
[345335760,1734159041371,-535.25449476,0.000274,2]
[345335761,1734159041381,-2703.74,0.000274,30]
[345335762,1734159041390,-151.0,0.000274,15]
[345335763,1734159041400,-151.0,0.000274,10]
[345335764,1734159041409,-151.0,0.000274,15]
[345335765,1734159041419,-2699.66,0.000274,2]
[345335766,1734159041429,-151.0,0.000274,12]
[345335767,1734159041443,-3200.0,0.00027405,2]
[345335768,1734159041452,-500.0,0.00027405,2]
[345335769,1734159041462,-1916.3963622,0.00027435,2]
[345335770,1734159041471,-38288.64278822,0.000275,2]
[345335771,1734159041481,-5000.0,0.000275,2]
[345335773,1734159041490,-5000.0,0.000275,2]
[345335775,1734159041500,-5000.0,0.000275,2]
[345335777,1734159041510,-5000.0,0.000275,2]
[345335779,1734159041520,-5615.0,0.000275,2]
[345335780,1734159041529,-151.0,0.000275,7]
[345335782,1734159041538,-396.051662,0.000275,7]
[345335784,1734159041547,-396.051662,0.000275,7]
[345335786,1734159041556,-151.0,0.000275,7]
[345335787,1734159041565,-151.0,0.000275,7]
[345335789,1734159041574,-151.0,0.000275,7]
[345335790,1734159041583,-151.0,0.00027519,6]
[345335791,1734159041593,-1000.0,0.000276,2]
[345335792,1734159041601,-420.0,0.00027644,2]
[345335793,1734159041610,-697.40331304,0.00027671,2]
[345335794,1734159041620,-500.0,0.00027671,2]
[345335795,1734159041629,-500.0,0.00027671,2]
[345335797,1734159041638,-500.0,0.00027671,7]
[345335799,1734159041647,-500.0,0.00027671,7]
[345335801,1734159041656,-500.0,0.00027671,7]
[345335802,1734159041666,-500.0,0.00027671,2]
[345335803,1734159041675,-500.0,0.00027671,7]
[345335804,1734159041684,-496.41091685,0.00027671,7]
[345335805,1734159041696,-704.19,0.00027671,7]
[345335806,1734159041705,-502.17569102,0.00027671,7]
[345335807,1734159041714,-500.0,0.00027671,7]
[345335808,1734159041724,-1401.91,0.00027671,7]
[345335809,1734159041734,-500.0,0.00027671,7]
[345335810,1734159041744,-187.0169918,0.00027671,7]
[345335811,1734159041754,-502.99523799,0.00027671,7]
[345335813,1734159041763,-597.94534574,0.00027671,7]
[345335814,1734159041772,-500.0,0.00027671,7]
[345335816,1734159041782,-500.0,0.00027671,7]
[345335817,1734159041792,-500.0,0.00027671,7]
[345335818,1734159041801,-500.0,0.00027671,7]
[345335819,1734159041811,-500.0,0.00027671,7]
[345335820,1734159041820,-249.3955714,0.00027671,7]
[345335821,1734159041829,-500.0,0.00027671,7]
[345335822,1734159041839,-500.0,0.00027671,7]
[345335823,1734159041848,-500.0,0.00027671,7]
[345335824,1734159041858,-500.0,0.00027671,7]
[345335825,1734159041867,-500.0,0.00027671,7]
[345335826,1734159041876,-500.0,0.00027671,7]
[345335827,1734159041885,-500.0,0.00027671,7]
[345335828,1734159041895,-500.0,0.00027671,7]
[345335829,1734159041904,-500.0,0.00027671,7]
[345335830,1734159041913,-500.0,0.00027671,7]
[345335831,1734159041923,-500.0,0.00027671,7]
[345335832,1734159041932,-500.0,0.00027671,7]
[345335833,1734159041943,-687.28,0.00027671,7]
[345335834,1734159041952,-553.07718341,0.00027671,7]
[345335835,1734159041962,-1123.28,0.00027671,7]
[345335836,1734159041971,-500.0,0.00027671,7]
[345335837,1734159041980,-500.0,0.00027671,7]
[345335838,1734159041990,-621.68,0.00027671,7]
[345335839,1734159041999,-500.0,0.00027671,7]
[345335840,1734159042008,-500.0,0.00027671,7]
[345335841,1734159042018,-500.0,0.00027671,7]
[345335842,1734159042027,-500.0,0.00027671,7]
[345335843,1734159042036,-500.0,0.00027671,7]
[345335844,1734159042045,-500.0,0.00027671,7]
[345335845,1734159042054,-749.98,0.00027671,7]
[345335846,1734159042063,-500.0,0.00027671,7]
[345335847,1734159042071,-500.0,0.00027671,7]
[345335848,1734159042081,-500.0,0.00027671,7]
[345335849,1734159042090,-500.0,0.00027671,7]
[345335850,1734159042099,-500.0,0.00027671,7]
[345335851,1734159042109,-500.0,0.00027671,7]
[345335852,1734159042119,-500.0,0.00027671,7]
[345335853,1734159042129,-500.0,0.00027671,2]
[345335854,1734159042139,-645.26,0.00027671,7]
[345335855,1734159042148,-500.0,0.00027671,7]
[345335856,1734159042158,-500.0,0.00027671,7]
[345335857,1734159042167,-500.0,0.00027671,7]
[345335858,1734159042176,-500.0,0.00027671,7]
[345335859,1734159042185,-500.0,0.00027671,7]
[345335860,1734159042195,-500.0,0.00027671,7]
[345335861,1734159042203,-500.0,0.00027671,7]
[345335862,1734159042212,-500.0,0.00027671,7]
[345335863,1734159042221,-151.0,0.00027671,7]
[345335864,1734159042231,-151.0,0.00027671,7]
[345335865,1734159042240,-396.051662,0.00027671,7]
[345335866,1734159042249,-396.051662,0.00027671,7]
[345335867,1734159042258,-1460.29,0.00027671,7]
[345335868,1734159042268,-500.0,0.00027671,7]
[345335869,1734159042277,-151.0,0.00027671,7]
[345335870,1734159042287,-396.051662,0.00027671,7]
[345335871,1734159042296,-151.0,0.00027671,7]
[345335872,1734159042305,-396.051662,0.00027671,7]
[345335873,1734159042315,-224.02,0.00027671,7]
[345335874,1734159042325,-1000.0,0.00027671,2]
[345335875,1734159042334,-500.0,0.00027671,7]
[345335876,1734159042344,-500.0,0.00027671,7]
[345335877,1734159042353,-500.0,0.00027671,7]
[345335878,1734159042362,-1517.98,0.00027671,7]
[345335879,1734159042371,-504.06712699,0.00027671,7]
[345335881,1734159042381,-500.0,0.00027671,7]
[345335883,1734159042390,-602.32,0.00027671,7]
[345335885,1734159042399,-500.0,0.00027671,7]
[345335886,1734159042409,-227.58810408,0.00027671,7]
[345335887,1734159042418,-500.0,0.00027671,7]
[345335888,1734159042427,-500.0,0.00027671,7]
[345335889,1734159042440,-658.03,0.00027671,7]
[345335890,1734159042450,-1358.11,0.00027671,7]
[345335891,1734159042460,-1000.0,0.00027671,2]
[345335892,1734159042470,-500.0,0.00027671,7]
[345335893,1734159042481,-817.74,0.00027671,7]
[345335894,1734159042491,-500.0,0.00027671,7]
[345335895,1734159042501,-500.0,0.00027671,7]
[345335896,1734159042512,-500.0,0.00027671,7]
[345335897,1734159042522,-939.49,0.00027671,7]
[345335898,1734159042531,-500.0,0.00027671,7]
[345335899,1734159042541,-1052.96,0.00027671,7]
[345335900,1734159042550,-500.0,0.00027671,7]
[345335901,1734159042559,-500.0,0.00027671,7]
[345335902,1734159042568,-500.0,0.00027671,7]
[345335903,1734159042577,-500.0,0.00027671,7]
[345335904,1734159042662,-500.0,0.00027671,7]
[345335905,1734159042672,-500.0,0.00027671,7]
[345335906,1734159042682,-500.0,0.00027671,7]
[345335907,1734159042692,-500.0,0.00027671,7]
[345335908,1734159042702,-500.0,0.00027671,7]
[345335910,1734159042711,-500.0,0.00027671,7]
[345335911,1734159042720,-764.82,0.00027671,7]
[345335912,1734159042730,-1015.81397904,0.00027671,7]
[345335913,1734159042739,-500.0,0.00027671,7]
[345335914,1734159042749,-504.14,0.00027671,7]
[345335915,1734159042758,-500.0,0.00027671,7]
[345335916,1734159042767,-1000.0,0.00027671,7]
[345335917,1734159042776,-500.0,0.00027671,7]
[345335918,1734159042786,-1228.98,0.00027671,7]
[345335919,1734159042796,-500.0,0.00027671,7]
[345335920,1734159042805,-505.08720714,0.00027671,7]
[345335921,1734159042815,-500.0,0.00027671,7]
[345335922,1734159042824,-500.0,0.00027671,7]
[345335923,1734159042834,-500.0,0.00027671,7]
[345335924,1734159042844,-500.0,0.00027671,2]
[345335925,1734159042853,-500.0,0.00027671,7]
[345335926,1734159042863,-500.0,0.00027671,7]
[345335927,1734159042872,-500.0,0.00027671,7]
[345335928,1734159042881,-500.0,0.00027671,7]
[345335929,1734159042891,-500.0,0.00027671,7]
[345335930,1734159042900,-500.0,0.00027671,7]
[345335931,1734159042909,-500.0,0.00027671,7]
[345335933,1734159042919,-500.0,0.00027671,7]
[345335934,1734159042928,-500.0,0.00027671,7]
[345335935,1734159042937,-500.0,0.00027671,7]
[345335936,1734159042949,-151.0,0.00027671,7]
[345335937,1734159042960,-151.0,0.00027671,7]
[345335938,1734159042970,-151.0,0.00027671,7]
[345335939,1734159042979,-151.0,0.00027671,7]
[345335940,1734159042988,-500.0,0.00027671,7]
[345335941,1734159042997,-500.0,0.00027671,7]
[345335942,1734159043007,-725.66,0.00027671,7]
[345335943,1734159043016,-500.0,0.00027671,7]
[345335944,1734159043026,-352.33238916,0.00027671,7]
[345335945,1734159043035,-500.0,0.00027671,7]
[345335946,1734159043045,-543.14,0.00027671,7]
[345335947,1734159043055,-500.0,0.00027671,7]
[345335948,1734159043064,-500.0,0.00027671,2]
[345335950,1734159043074,-500.0,0.00027671,7]
[345335952,1734159043083,-500.0,0.00027671,7]
[345335953,1734159043092,-500.0,0.00027671,7]
[345335954,1734159043101,-500.0,0.00027671,7]
[345335955,1734159043111,-500.0,0.00027671,7]
[345335956,1734159043120,-500.0,0.00027671,7]
[345335957,1734159043130,-2686.52,0.00027671,7]
[345335958,1734159043139,-500.0,0.00027671,7]
[345335959,1734159043148,-375.9809079,0.00027671,7]
[345335960,1734159043157,-500.0,0.00027671,7]
[345335961,1734159043166,-1632.65,0.00027671,7]
[345335962,1734159043175,-746.19,0.00027671,7]
[345335963,1734159043184,-524.97,0.00027671,7]
[345335964,1734159043193,-2288.24,0.00027671,7]
[345335965,1734159043205,-500.0,0.00027671,7]
[345335966,1734159043213,-500.0,0.00027671,7]
[345335967,1734159043223,-500.0,0.00027671,7]
[345335968,1734159043233,-500.0,0.00027671,7]
[345335970,1734159043242,-500.0,0.00027671,7]
[345335972,1734159043250,-500.0,0.00027671,7]
[345335975,1734159043259,-1160.05,0.00027671,7]
[345335978,1734159043269,-500.0,0.00027671,7]
[345335981,1734159043278,-616.9,0.00027671,7]
[345335983,1734159043287,-686.45,0.00027671,7]
[345335985,1734159043296,-500.0,0.00027671,7]
[345335988,1734159043306,-500.0,0.00027671,7]
[345335989,1734159043316,-500.0,0.00027671,7]
[345335990,1734159043325,-500.0,0.00027671,7]
[345335991,1734159043335,-528.1,0.00027671,7]
[345335992,1734159043344,-500.0,0.00027671,7]
[345335993,1734159043354,-1512.59,0.00027671,7]
[345335994,1734159043364,-427.6502116,0.00027671,7]
[345335995,1734159043374,-500.0,0.00027671,7]
[345335996,1734159043384,-600.55870853,0.00027671,7]
[345335997,1734159043394,-1173.88,0.00027671,7]
[345335998,1734159043404,-5164.9,0.00027671,7]
[345335999,1734159043413,-500.0,0.00027671,7]
[345336000,1734159043422,-726.21,0.00027671,7]
[345336001,1734159043434,-500.0,0.00027671,7]
[345336002,1734159043445,-840.11,0.00027671,7]
[345336003,1734159043455,-995.1,0.00027671,7]
[345336004,1734159043465,-500.0,0.00027671,7]
[345336005,1734159043475,-500.0,0.00027671,7]
[345336006,1734159043485,-500.0,0.00027671,2]
[345336007,1734159043494,-1311.49,0.00027671,7]
[345336008,1734159043504,-1081.72,0.00027671,7]
[345336009,1734159043515,-1397.12,0.00027671,7]
[345336010,1734159043524,-500.0,0.00027671,7]
[345336011,1734159043533,-1038.67,0.00027671,7]
[345336012,1734159043542,-500.0,0.00027671,7]
[345336013,1734159043551,-2134.49,0.00027671,7]
[345336014,1734159043561,-500.0,0.00027671,7]
[345336015,1734159043571,-500.0,0.00027671,7]
[345336016,1734159043580,-909.17,0.00027671,7]
[345336017,1734159043589,-14918.91,0.00027671,7]
[345336018,1734159043598,-500.0,0.00027671,7]
[345336019,1734159043607,-1332.87,0.00027671,7]
[345336020,1734159043616,-2507.57,0.00027671,7]
[345336021,1734159043625,-500.0,0.00027671,7]
[345336022,1734159043634,-500.0,0.00027671,7]
[345336023,1734159043643,-809.35,0.00027671,7]
[345336024,1734159043652,-500.0,0.00027671,7]
[345336025,1734159043662,-500.0,0.00027671,7]
[345336026,1734159043670,-500.0,0.00027671,7]
[345336027,1734159043679,-992.66,0.00027671,7]
[345336028,1734159043689,-523.64,0.00027671,7]
[345336029,1734159043698,-517.84590568,0.00027671,7]
[345336030,1734159043707,-500.0,0.00027671,7]
[345336031,1734159043716,-6012.59,0.00027671,5]
[345336032,1734159043729,-500.0,0.00027671,7]
[345336033,1734159043739,-500.0,0.00027671,7]
[345336034,1734159043748,-614.01282439,0.00027671,7]
[345336035,1734159043757,-1049.65,0.00027671,7]
[345336036,1734159043766,-10760.43,0.00027671,7]
[345336037,1734159043776,-183.491893,0.00027671,2]
[345336038,1734159043785,-183.491893,0.00027671,120]
[345336039,1734159043794,-500.0,0.00027673,5]
[345336040,1734159043803,-151.0,0.00027679,6]
[345336041,1734159043812,-1012.29696657,0.00027755,3]
[345336042,1734159043821,-151.0,0.0002784,6]
[345336043,1734159043831,-447.65,0.00027889,2]
[345336044,1734159043841,-232.11,0.000279,7]
[345336045,1734159043851,-410.07,0.000279,31]
[345336046,1734159043860,-410.07,0.000279,31]
[345336047,1734159043869,-410.07,0.000279,31]
[345336048,1734159043877,-410.07,0.000279,31]
[345336050,1734159043887,-410.07,0.000279,31]
[345336052,1734159043896,-410.07,0.000279,31]
[345336054,1734159043906,-410.07,0.000279,31]
[345336056,1734159043915,-410.07,0.000279,31]
[345336058,1734159043924,-410.07,0.000279,31]
[345336060,1734159043933,-410.07,0.000279,31]
[345336061,1734159043944,-410.07,0.000279,31]
[345336062,1734159043954,-410.07,0.000279,31]
[345336063,1734159043963,-410.07,0.000279,31]
[345336064,1734159043971,-410.07,0.000279,31]
[345336065,1734159043982,-410.07,0.000279,31]
[345336066,1734159043991,-410.07,0.000279,31]
[345336067,1734159044000,-410.07,0.000279,31]
[345336068,1734159044009,-410.07,0.000279,31]
[345336069,1734159044018,-410.07,0.000279,31]
[345336070,1734159044028,-410.07,0.000279,31]
[345336071,1734159044037,-410.07,0.000279,31]
[345336072,1734159044046,-410.07,0.000279,31]
[345336073,1734159044055,-410.07,0.000279,31]
[345336074,1734159044066,-410.07,0.000279,31]
[345336075,1734159044075,-158.726571,0.00027908,2]
[345336076,1734159044087,-372.82670725,0.00027921,5]
[345336077,1734159044097,-1000.0,0.00027921,5]
[345336078,1734159044107,-1000.0,0.00027921,5]
[345336079,1734159044115,-1916.3963622,0.00027935,2]
[345336080,1734159044125,-255.72732822,0.00027945,2]
[345336081,1734159044134,-151.79139515,0.00027945,2]
[345336082,1734159044143,-500.0,0.00027945,2]
[345336083,1734159044152,-500.0,0.00027945,2]
[345336084,1734159044232,-279.6186973,0.00027945,2]
[345336085,1734159044241,-500.0,0.00027945,7]
[345336086,1734159044250,-500.0,0.00027945,7]
[345336087,1734159044260,-500.0,0.00027945,7]
[345336088,1734159044269,-244.8930102,0.00027945,2]
[345336089,1734159044279,-396.75224186,0.00027945,7]
[345336090,1734159044288,-704.19,0.00027945,7]
[345336091,1734159044297,-502.30725241,0.00027945,7]
[345336092,1734159044307,-1401.91,0.00027945,7]
[345336093,1734159044316,-500.0,0.00027945,7]
[345336094,1734159044326,-500.0,0.00027945,7]
[345336095,1734159044335,-500.0,0.00027945,7]
[345336096,1734159044344,-500.0,0.00027945,7]
[345336097,1734159044353,-500.0,0.00027945,7]
[345336098,1734159044363,-500.0,0.00027945,7]
[345336099,1734159044372,-500.0,0.00027945,7]
[345336100,1734159044383,-500.0,0.00027945,7]
[345336101,1734159044392,-500.0,0.00027945,7]
[345336102,1734159044400,-500.0,0.00027945,7]
[345336103,1734159044409,-624.16598017,0.00027945,7]
[345336104,1734159044419,-500.0,0.00027945,7]
[345336105,1734159044430,-500.0,0.00027945,7]
[345336106,1734159044443,-532.31897288,0.00027945,7]
[345336107,1734159044453,-500.0,0.00027945,7]
[345336108,1734159044462,-500.0,0.00027945,7]
[345336109,1734159044472,-500.0,0.00027945,7]
[345336110,1734159044483,-500.0,0.00027945,7]
[345336111,1734159044492,-687.28,0.00027945,7]
[345336112,1734159044501,-1123.28,0.00027945,7]
[345336113,1734159044511,-500.0,0.00027945,7]
[345336114,1734159044520,-527.23246982,0.00027945,7]
[345336115,1734159044529,-621.68,0.00027945,7]
[345336116,1734159044539,-500.0,0.00027945,7]
[345336117,1734159044549,-500.0,0.00027945,7]
[345336118,1734159044558,-500.0,0.00027945,7]
[345336119,1734159044567,-500.0,0.00027945,7]
[345336120,1734159044577,-500.0,0.00027945,7]
[345336121,1734159044587,-500.0,0.00027945,7]
[345336122,1734159044596,-749.98,0.00027945,7]
[345336123,1734159044606,-500.0,0.00027945,7]
[345336124,1734159044615,-500.0,0.00027945,7]
[345336125,1734159044624,-500.0,0.00027945,7]
[345336126,1734159044633,-500.0,0.00027945,7]
[345336127,1734159044643,-500.0,0.00027945,7]
[345336128,1734159044653,-500.0,0.00027945,7]
[345336129,1734159044663,-500.0,0.00027945,7]
[345336130,1734159044674,-500.0,0.00027945,2]
[345336131,1734159044683,-645.26,0.00027945,7]
[345336132,1734159044693,-500.0,0.00027945,7]
[345336133,1734159044705,-500.0,0.00027945,7]
[345336134,1734159044714,-500.0,0.00027945,7]
[345336135,1734159044723,-500.0,0.00027945,7]
[345336136,1734159044731,-507.57559298,0.00027945,7]
[345336137,1734159044741,-500.0,0.00027945,7]
[345336138,1734159044751,-500.0,0.00027945,7]
[345336139,1734159044759,-382.52249911,0.00027945,7]
[345336140,1734159044769,-151.0,0.00027945,7]
[345336141,1734159044780,-396.051662,0.00027945,7]
[345336142,1734159044790,-1460.29,0.00027945,7]
[345336143,1734159044800,-311.9836919,0.00027945,7]
[345336144,1734159044808,-151.0,0.00027945,7]
[345336145,1734159044820,-396.051662,0.00027945,7]
[345336146,1734159044831,-224.02,0.00027945,7]
[345336147,1734159044840,-1000.0,0.00027945,2]
[345336148,1734159044850,-500.0,0.00027945,7]
[345336149,1734159044860,-500.0,0.00027945,7]
[345336150,1734159044870,-500.0,0.00027945,7]
[345336151,1734159044879,-1517.98,0.00027945,7]
[345336152,1734159044888,-500.0,0.00027945,7]
[345336153,1734159044897,-602.32,0.00027945,7]
[345336154,1734159044906,-500.0,0.00027945,7]
[345336155,1734159044915,-500.0,0.00027945,7]
[345336156,1734159044924,-500.0,0.00027945,7]
[345336157,1734159044933,-658.03,0.00027945,7]
[345336158,1734159044944,-1358.11,0.00027945,7]
[345336159,1734159044955,-1000.0,0.00027945,2]
[345336160,1734159044964,-500.0,0.00027945,7]
[345336161,1734159044974,-817.74,0.00027945,7]
[345336162,1734159044983,-500.0,0.00027945,7]
[345336163,1734159044993,-500.0,0.00027945,7]
[345336164,1734159045002,-500.0,0.00027945,7]
[345336165,1734159045012,-939.49,0.00027945,7]
[345336166,1734159045022,-500.0,0.00027945,7]
[345336167,1734159045031,-1052.96,0.00027945,7]
[345336168,1734159045040,-500.0,0.00027945,7]
[345336169,1734159045049,-500.0,0.00027945,7]
[345336170,1734159045063,-500.0,0.00027945,7]
[345336171,1734159045073,-500.0,0.00027945,7]
[345336172,1734159045082,-500.0,0.00027945,7]
[345336173,1734159045092,-500.0,0.00027945,7]
[345336174,1734159045101,-500.0,0.00027945,7]
[345336175,1734159045111,-500.0,0.00027945,7]
[345336176,1734159045120,-500.0,0.00027945,7]
[345336177,1734159045130,-500.0,0.00027945,7]
[345336178,1734159045139,-764.82,0.00027945,7]
[345336179,1734159045148,-500.0,0.00027945,7]
[345336180,1734159045157,-504.14,0.00027945,7]
[345336181,1734159045167,-500.0,0.00027945,7]
[345336182,1734159045176,-1000.0,0.00027945,7]
[345336183,1734159045185,-500.0,0.00027945,7]
[345336184,1734159045194,-1228.98,0.00027945,7]
[345336185,1734159045205,-500.0,0.00027945,7]
[345336186,1734159045214,-500.0,0.00027945,7]
[345336187,1734159045223,-500.0,0.00027945,7]
[345336188,1734159045233,-500.0,0.00027945,7]
[345336189,1734159045242,-500.0,0.00027945,2]
[345336190,1734159045251,-500.0,0.00027945,7]
[345336191,1734159045260,-500.0,0.00027945,7]
[345336192,1734159045270,-500.0,0.00027945,7]
[345336193,1734159045279,-500.0,0.00027945,7]
[345336194,1734159045289,-500.0,0.00027945,7]
[345336195,1734159045299,-500.0,0.00027945,7]
[345336196,1734159045309,-500.0,0.00027945,7]
[345336197,1734159045318,-500.0,0.00027945,7]
[345336198,1734159045327,-500.0,0.00027945,7]
[345336199,1734159045336,-500.0,0.00027945,7]
[345336200,1734159045346,-151.0,0.00027945,7]
[345336201,1734159045355,-151.0,0.00027945,7]
[345336202,1734159045365,-500.0,0.00027945,7]
[345336203,1734159045374,-500.0,0.00027945,7]
[345336204,1734159045383,-725.66,0.00027945,7]
[345336205,1734159045393,-500.0,0.00027945,7]
[345336206,1734159045403,-500.0,0.00027945,7]
[345336207,1734159045413,-543.14,0.00027945,7]
[345336208,1734159045422,-340.79416499,0.00027945,7]
[345336209,1734159045435,-500.0,0.00027945,2]
[345336210,1734159045444,-302.71520537,0.00027945,7]
[345336211,1734159045454,-500.0,0.00027945,7]
[345336212,1734159045463,-500.0,0.00027945,7]
[345336213,1734159045474,-500.0,0.00027945,7]
[345336214,1734159045484,-500.0,0.00027945,7]
[345336215,1734159045494,-500.0,0.00027945,7]
[345336216,1734159045503,-2686.52,0.00027945,7]
[345336217,1734159045516,-314.087422,0.00027945,7]
[345336221,1734159045706,-185.912578,0.00027945,7]
[345336222,1734159045716,-500.0,0.00027945,7]
[345336223,1734159045726,-1632.65,0.00027945,7]
[345336224,1734159045736,-746.19,0.00027945,7]
[345336225,1734159045746,-524.97,0.00027945,7]
[345336226,1734159045756,-2288.24,0.00027945,7]
[345336227,1734159045765,-500.0,0.00027945,7]
[345336228,1734159045774,-500.0,0.00027945,7]
[345336229,1734159045784,-500.0,0.00027945,7]
[345336230,1734159045794,-500.0,0.00027945,7]
[345336231,1734159045804,-573.85362988,0.00027945,7]
[345336232,1734159045814,-500.0,0.00027945,7]
[345336233,1734159045824,-1160.05,0.00027945,7]
[345336234,1734159045833,-500.0,0.00027945,7]
[345336235,1734159045842,-616.9,0.00027945,7]
[345336236,1734159045852,-686.45,0.00027945,7]
[345336237,1734159045861,-500.0,0.00027945,7]
[345336238,1734159045870,-500.0,0.00027945,7]
[345336239,1734159045879,-500.0,0.00027945,7]
[345336240,1734159045889,-500.0,0.00027945,7]
[345336241,1734159045899,-528.1,0.00027945,7]
[345336242,1734159045908,-500.0,0.00027945,7]